[Event "WR Chess Masters Cup 2024"]
[Site "London"]
[Date "2024.10.14"]
[Round "1.1"]
[White "Vachier-Lagrave, Maxime"]
[Black "Sindarov, Javokhir"]
[Result "1/2-1/2"]
[ECO "C83"]
[WhiteElo "2735"]
[BlackElo "2668"]
[Annotator "TA"]
[PlyCount "64"]
[EventDate "2024.10.12"]
[EventType "k.o."]
[EventCountry "ENG"]
[SourceTitle "playchess.com"]
[Source "ChessBase"]
[SourceQuality "1"]
[TimeControl "30/3600:20/1800:1800"]

{[%evp 18,64,43,27,22,22,29,22,38,25,31,23,27,33,100,101,104,0,0,0,0,0,0,-4,-5,-15,-11,-10,-8,-25,-15,-14,-10,-12,-6,-26,-35,-37,-36,-94,-114,-105,-56,-52,-39,-44,-47,-46,-3]} 1. e4 {[%emt 0:00:03]} e5 {[%emt 0:00:07]} 2. Nf3 {[%emt 0:00:02]} Nc6 {[%emt 0:00:06]} 3. Bb5 {[%emt 0:00:03][%cal Bf1b5,Bb5a4,Ba4b3,Bb3c2][%mdl 32]} a6 {[%emt 0:00:06]} 4. Ba4 {[%emt 0:00:02]} Nf6 {[%emt 0:00:06]} 5. O-O {[%emt 0:00:05]} Nxe4 {[%emt 0:00:07]} 6. d4 {[%emt 0:00:03]} b5 {[%emt 0:00:06]} 7. Bb3 {[%emt 0:00:03]} d5 {[%emt 0:00:05]} 8. dxe5 {[%emt 0:00:06]} Be6 {[%emt 0:00:04]} 9. c3 {[%emt 0:01:07]} Be7 {[%emt 0:00:06]} 10. Bf4 {[%emt 0:02:55]} Qd7 {[%emt 0:09:16]} 11. Nbd2 {[%emt 0:04:10]} Nc5 {[%emt 0:02:48]} 12. Bc2 {[%emt 0:00:10] Wards off Nd3} d4 {[%emt 0:00:14] The position is equal.} 13. Ne4 {[%emt 0:07:52]} dxc3 {[%emt 0:00:29]} 14. bxc3 {[%emt 0:00:09]} Rd8 {[%emt 0:01:12]} 15. Qb1 {[%emt 0:03:00]} Bd5 {[%emt 0:08:17] [#]} ({Better is} 15... Nxe4 $14 16. Bxe4 h6) 16. Nxc5 $1 $16 {[%emt 0:03:49]} Bxc5 {[%emt 0:00:04] [#]} 17. e6 {[%emt 0:00:09]} (17. Bf5 $1 $16 {[%cal Rf5d7]} Be6 18. Bxh7) 17... fxe6 $11 {[%emt 0:01:21]} 18. Bxh7 {[%emt 0:07:52]} Bxf3 {[%emt 0:00:44]} 19. gxf3 {[%emt 0:00:09]} Ne7 {[%emt 0:00:10]} 20. Qc2 {[%emt 0:09:20]} Bd6 {[%emt 0:09:00]} 21. Rad1 {[%emt 0:03:18]} Qc6 {[%emt 0:00:13]} 22. Bg6+ {[%emt 0:04:30]} Kf8 {[%emt 0:01:16]} 23. Kg2 {[%emt 0:03:41]} Rh4 {[%emt 0:10:26]} 24. Be4 {[%emt 0:02:29] Chess con chili.} Qc5 {[%emt 0:00:39]} 25. Bg3 {[%emt 0:00:06] This pair of bishops is nice.} Rh6 {[%emt 0:00:09]} 26. Rd3 {[%emt 0:01:49]} Kf7 {[%emt 0:00:27]} 27. Qd2 {[%emt 0:01:03]} Rdh8 {[%emt 0:01:19]} 28. Rxd6 {[%emt 0:00:29]} (28. Bxd6 $2 {is the wrong capture.} cxd6 29. Qf4+ Ke8 (29... Nf5 $2 30. Bxf5 Rxh2+ 31. Qxh2 $17) 30. Qxd6 (30. Rxd6 $2 {loses.} Rxh2+ 31. Qxh2 Rxh2+ 32. Kxh2 Qxd6+ $19) 30... Qg5+ 31. Kh1 (31. Qg3 $2 {leads to mate.} Rxh2+ 32. Kg1 Rh1+ 33. Kg2 R8h2#) 31... Rxh2+ 32. Qxh2 Rxh2+ 33. Kxh2 Nd5 $19) ({White should try} 28. Rg1 $15) 28... cxd6 $17 {[%emt 0:00:06]} 29. Bxd6 {[%emt 0:00:04]} Qh5 {[%emt 0:01:06]} ({Black should play} 29... Qc8 $17 {[%cal Oe6e5] Strongly threatening ...e5!} 30. Bg3 Nf5) 30. Bg3 $15 {[%emt 0:00:00] Black is slightly better.} Nd5 {[%emt 0:00:00] Prevents Qf4+.} 31. h4 {[%emt 0:04:26]} Rd8 {[%emt 0:04:56][%cal Og7g5]} 32. Rc1 {[%emt 0:02:38]} g5 {[%emt 0:20:33] Weighted Error Value: White=0.12 (very precise) /Black=0.09 (flawless) .  Mistake:       	White=2     	Black=2      Inaccurate:     	---       	Black=1      OK:         	White=7     	Black=7      Best:        	White=1     	Black=1      Strong:       	White=1     	---} 1/2-1/2

[Event "WR Chess Masters Cup 2024"]
[Site "London"]
[Date "2024.10.14"]
[Round "1.1"]
[White "Topalov, Veselin"]
[Black "Vidit, Santosh Gujrathi"]
[Result "0-1"]
[ECO "C65"]
[WhiteElo "2727"]
[BlackElo "2726"]
[Annotator "TA"]
[PlyCount "86"]
[EventDate "2024.10.12"]
[EventType "k.o."]
[EventCountry "ENG"]
[SourceTitle "playchess.com"]
[Source "ChessBase"]
[SourceQuality "1"]
[TimeControl "30/3600:20/1800:1800"]

{[%evp 9,86,7,16,13,20,6,50,0,0,9,13,1,8,5,28,0,16,14,15,0,0,0,5,-7,-2,-8,0,-16,-11,-22,-18,-60,-53,-72,-7,-12,-3,-10,-10,-11,-6,-9,0,0,0,0,10,-18,-6,-35,-20,-20,-18,-22,-24,-31,-20,-43,-50,-46,-28,-29,-22,-17,-8,-15,-8,-17,0,-363,-347,-483,-485,-485,-470,-567,-560,-1762,-1651]} 1. e4 {[%emt 0:00:04]} e5 {[%emt 0:00:38]} 2. Nf3 {[%emt 0:00:05]} Nc6 {[%emt 0:00:10]} 3. Bb5 {[%emt 0:00:11]} Nf6 {[%emt 0:00:20]} 4. d3 {[%emt 0:00:08]} Bc5 {[%emt 0:00:06]} 5. c3 {[%emt 0:00:22]} O-O {[%emt 0:00:18]} 6. O-O {[%emt 0:00:10]} d5 {[%emt 0:01:01]} 7. Nbd2 {[%emt 0:00:35]} a5 {[%emt 0:02:56]} 8. h3 {[%emt 0:02:56] Weiß steht etwas besser.} dxe4 {[%emt 0:00:53]} 9. dxe4 {[%emt 0:00:18]} Qe7 {[%emt 0:00:11]} 10. a4 {[%emt 0:03:56]} Na7 {[%emt 0:07:11]} 11. Bc4 {[%emt 0:02:03]} Bd7 {[%emt 0:03:38]} 12. Qc2 {[%emt 0:10:47]} Bc6 {[%emt 0:04:02]} 13. Re1 {[%emt 0:01:45]} Nc8 {[%emt 0:00:27]} 14. Bd3 {[%emt 0:02:48]} Nb6 {[%emt 0:00:58]} 15. b3 {[%emt 0:04:51]} Rfd8 {[%emt 0:04:54]} 16. Nc4 {[%emt 0:03:19]} Nxc4 {[%emt 0:10:15]} 17. Bxc4 {[%emt 0:00:04]} h6 {[%emt 0:00:41]} 18. Nh4 {[%emt 0:06:55]} Bd7 {[%emt 0:01:02]} 19. Ng6 {[%emt 0:02:39] Verhindert Ng4} (19. Re2 {vereinfacht} Be6 20. Bxe6 Qxe6 21. Nf5) 19... Qe8 {[%emt 0:00:14]} 20. Qe2 {[%emt 0:01:15]} c6 $1 {[%emt 0:03:58] Weiss muss nun ...b5 beachten.} 21. Nh4 $1 {[%emt 0:01:03]} Be6 {[%emt 0:00:20]} (21... b5 $17 22. axb5 cxb5) 22. Nf3 $11 {[%emt 0:00:31]} Nd7 {[%emt 0:01:56]} 23. Rb1 {[%emt 0:01:05]} Bxc4 {[%emt 0:01:06]} 24. Qxc4 {[%emt 0:00:10]} Qe7 {[%emt 0:00:07]} 25. Bd2 {[%emt 0:01:30]} Nb6 {[%emt 0:04:21]} 26. Qe2 {[%emt 0:00:09]} Rd7 {[%emt 0:00:24]} 27. Red1 {[%emt 0:02:32]} Rad8 {[%emt 0:02:09]} 28. c4 {[%emt 0:00:53]} Bb4 {[%emt 0:00:29] Pariert Bc3.} 29. Be3 {[%emt 0:01:55]} Rxd1+ {[%emt 0:01:01]} 30. Rxd1 {[%emt 0:00:00]} Rxd1+ {[%emt 0:00:00]} 31. Qxd1 {[%emt 0:00:16]} Nd7 {[%emt 0:00:17][%cal Bb6d7,Bd7c5,Bc5e4,Be4c3][%mdl 32]} 32. Kf1 {[%emt 0:01:30]} b6 {[%emt 0:09:17]} 33. Bc1 {[%emt 0:02:32]} Nc5 {[%emt 0:04:03]} 34. Qc2 {[%emt 0:00:46]} Qd6 {[%emt 0:02:00][%cal Oc5e4]} 35. Be3 {[%emt 0:03:08]} Nxe4 {[%emt 0:01:17]} 36. Bxb6 $1 {[%emt 0:02:10]} f5 {[%emt 0:00:33][%cal Bf7f5,Bf5f4][%mdl 32]} 37. Be3 {[%emt 0:03:43]} f4 {[%emt 0:00:49]} 38. Bb6 {[%emt 0:08:49]} (38. Qxe4 $2 {wird mattgesetzt.} Qd1+) (38. Bxf4 $2 Qg6 39. Qc1 (39. Bxe5 $2 Ng3+ 40. Kg1 Qxc2 $19) 39... exf4 40. Qxf4 Nc5 $19) 38... Nc3 $36 {[%emt 0:00:52][%mdl 2048] Droht stark ...e4. Schwarz hat Initiative.} (38... Nf6 $5 39. c5 $8 Qd5 $15) 39. Qd2 $2 {[%emt 0:01:51][%mdl 8192] [#]} (39. Kg1 $11 {und Weiss muss sich keine Sorgen machen.}) 39... Nd5 $1 $19 {[%emt 0:01:53][%mdl 512]} 40. c5 {[%emt 0:00:06]} (40. Bc5 Qxc5) 40... Qg6 {[%emt 0:04:25] Schwarz steht klar auf Gewinn.} (40... Bxc5 41. Bxc5 (41. Bxa5 $2 {ist das falsche Schlagen.} e4 $19) 41... Qxc5 42. Nxe5 $18) 41. Qd1 {[%emt 0:00:09]} e4 {[%emt 0:00:29][%cal Oe4e3] Zielt auf ...e3! ab.} 42. Qc2 {[%emt 0:05:06]} Qf6 {[%emt 0:01:16] ( -> ...Qa1+)} 43. Qxe4 {[%emt 0:01:07] Und Kg1 würde nun gewinnen.} Qa1+ {[%emt 0:00:07] Gewichteter Fehlerwert: Weiß=0.49/Schwarz=0.07 (makellos) .  Verlustzug:     	Weiß=1     	---        Fehler:       	---       	Schwarz=1     Ungenau:       	Weiß=7     	Schwarz=1     OK:         	Weiß=8     	Schwarz=15    Bester:       	---       	Schwarz=2     Stark:        	Weiß=2     	Schwarz=1     Brilliant:      	---       	Schwarz=1} 0-1

[Event "WR Chess Masters Cup 2024"]
[Site "London"]
[Date "2024.10.14"]
[Round "1.1"]
[White "Maghsoodloo, Parham"]
[Black "Sadhwani, Raunak"]
[Result "0-1"]
[ECO "D50"]
[WhiteElo "2719"]
[BlackElo "2659"]
[Annotator "TA"]
[PlyCount "124"]
[EventDate "2024.10.12"]
[EventType "k.o."]
[EventCountry "ENG"]
[SourceTitle "playchess.com"]
[Source "ChessBase"]
[SourceQuality "1"]
[TimeControl "30/3600:20/1800:1800"]

{[%evp 14,124,16,19,20,20,29,16,10,4,10,5,8,0,0,9,8,11,18,18,0,0,0,17,4,0,8,16,12,7,0,0,0,0,12,8,25,23,14,-8,12,0,0,0,0,0,0,0,0,0,0,0,0,0,8,11,8,0,0,0,0,0,0,0,0,0,0,0,6,6,8,8,6,0,5,0,0,-114,-114,-113,-19,-14,0,-113,-88,-93,-93,-209,-159,-140,-141,-342,-212,-2434,-2445,-2419,-1892,-2470,-2210,-29948,-29954,-29958,-29956,-6170,-5025,-29977,-29978,-29976,-29976,-29980,-29981,-29981,-29982]} 1. d4 {[%emt 0:00:04]} Nf6 {[%emt 0:00:05]} 2. c4 {[%emt 0:00:06]} e6 {[%emt 0:00:03]} 3. Nf3 {[%emt 0:00:06]} d5 {[%emt 0:00:04]} 4. Nc3 {[%emt 0:00:08]} c5 {[%emt 0:00:04]} 5. cxd5 {[%emt 0:00:25]} cxd4 {[%emt 0:00:06]} 6. Qxd4 {[%emt 0:00:08]} exd5 {[%emt 0:00:04]} 7. Bg5 {[%emt 0:00:22]} Be7 {[%emt 0:00:34]} 8. e3 {[%emt 0:00:15]} O-O {[%emt 0:00:55]} 9. Be2 {[%emt 0:00:23]} h6 {[%emt 0:00:39]} 10. Bh4 {[%emt 0:00:07]} Nc6 {[%emt 0:00:16] The position is equal.} 11. Qd3 {[%emt 0:00:09]} Qb6 {[%emt 0:01:22]} 12. O-O {[%emt 0:00:11]} Rd8 {[%emt 0:00:17]} 13. Rfd1 {[%emt 0:00:14]} Be6 {[%emt 0:01:06]} 14. h3 {[%emt 0:00:08]} a6 {[%emt 0:01:34]} 15. a3 {[%emt 0:00:14]} g5 {[%emt 0:01:24]} 16. Bg3 {[%emt 0:00:08]} Ne4 {[%emt 0:00:06]} 17. Nxe4 {[%emt 0:00:06]} dxe4 {[%emt 0:00:04]} 18. Qxe4 {[%emt 0:00:05]} Qxb2 {[%emt 0:00:06]} 19. Re1 {[%emt 0:00:05]} Bd5 $132 {[%emt 0:03:21][%mdl 2048] Black is not keeping still} 20. Qg4 {[%emt 0:00:53]} Be6 {[%emt 0:00:28]} 21. Qh5 {[%emt 0:03:25]} Qg7 {[%emt 0:00:58]} 22. Bc7 {[%emt 0:04:14]} Rd7 {[%emt 0:03:22]} 23. Bb6 {[%emt 0:00:14]} Bd8 {[%emt 0:13:14]} 24. Bd4 {[%emt 0:02:58]} Bf6 {[%emt 0:06:10]} 25. Bxf6 {[%emt 0:04:26]} Qxf6 {[%emt 0:00:02]} 26. h4 {[%emt 0:01:24]} (26. Rac1 {simplifies} Kg7 27. h4 gxh4 28. Qxh4 Qxh4 29. Nxh4 Rd2 30. Bc4) 26... gxh4 {[%emt 0:01:25] [#]} (26... g4 $5 27. Nh2 $8 Ne5 $11 (27... g3 28. fxg3 Ne5 29. a4 $14)) 27. Bc4 $1 {[%emt 0:02:50]} h3 {[%emt 0:02:04]} 28. Bxe6 {[%emt 0:02:51]} Qxe6 {[%emt 0:00:07]} 29. Qxh3 {[%emt 0:02:47]} Qxh3 {[%emt 0:00:07]} 30. gxh3 {[%emt 0:00:00]} Re8 {[%emt 0:00:00]} 31. Red1 {[%emt 0:01:50]} Red8 {[%emt 0:07:23]} 32. Rxd7 {[%emt 0:04:35]} Rxd7 $11 {[%emt 0:00:02][%mdl 4096] Endgame. KRN-KRN} 33. Rb1 {[%emt 0:00:15]} b5 {[%emt 0:02:17]} 34. Rc1 {[%emt 0:00:17]} Rd6 {[%emt 0:03:30]} 35. Nh4 {[%emt 0:03:28]} Ne5 {[%emt 0:02:02]} 36. Rc8+ {[%emt 0:08:01]} Kh7 {[%emt 0:00:06]} 37. Rc5 {[%emt 0:00:42]} Re6 {[%emt 0:03:32]} 38. Kg2 {[%emt 0:03:49]} Nc4 {[%emt 0:06:01]} 39. a4 {[%emt 0:03:05]} Rb6 {[%emt 0:09:31]} 40. Rc7 {[%emt 0:08:19]} Kg8 {[%emt 0:01:12]} 41. Nf5 {[%emt 0:10:00]} Nd2 {[%emt 0:02:07]} 42. Rd7 {[%emt 0:04:51]} Nc4 {[%emt 0:00:44] aiming for ...b4.} 43. Rd4 {[%emt 0:02:12]} Na5 {[%emt 0:02:45]} 44. Rb4 {[%emt 0:02:29]} Nc6 {[%emt 0:03:50]} 45. Rh4 {[%emt 0:00:58]} (45. Rb1 $11 {remains equal.}) 45... b4 $17 {[%emt 0:02:41] Hoping for ...b3.} 46. Nxh6+ {[%emt 0:01:48]} (46. Rxh6 f6 (46... a5 47. Nd4 $14) 47. Nd6 (47. Rxf6 $2 b3 $19) 47... b3 $17) 46... Kg7 {[%emt 0:00:23]} ({Better is} 46... Kf8 $17 47. Nf5 Ne7) 47. Nf5+ $11 {[%emt 0:00:17]} Kg8 {[%emt 0:00:04][%mdl 1024] White must now prevent ...b3. Black has compensation.} 48. a5 {[%emt 0:01:17]} Rb5 {[%emt 0:01:23]} 49. Rg4+ {[%emt 0:01:14]} Kf8 {[%emt 0:00:07]} 50. Nd6 {[%emt 0:00:00]} (50. Rc4 $17 Rxf5 (50... Nxa5 51. Rc8#) 51. Rxc6 Rxa5 52. Rb6) 50... Rd5 {[%emt 0:00:00]} 51. Nc4 {[%emt 0:03:52]} b3 $1 {[%emt 0:01:22] Black is more active.} (51... Nxa5 $2 52. Nxa5 Rxa5 53. Rxb4 $18) 52. e4 $2 {[%emt 0:08:56] Loses the game.} (52. Nb2 $17) 52... Rd4 {[%emt 0:01:57]} 53. e5 $2 {[%emt 0:01:00] [#]} (53. Rg3) 53... Rxc4 $1 $19 {[%emt 0:01:04][%mdl 512]} 54. Rxc4 {[%emt 0:00:06]} b2 {[%emt 0:00:01]} (54... Nxe5 $2 {too greedy.} 55. Rb4 $18) 55. Rxc6 {[%emt 0:00:08]} b1=Q {[%emt 0:00:06] ( -> ...Qe4+). KQ-KR} (55... b1=B 56. Rxa6 Ke8 57. Rd6 f6 58. Rxf6 (58. exf6 Bf5 59. a6 Be4+ 60. f3 Ba8 61. h4 Kf8 62. h5 Kf7) 58... Be4+ 59. f3 Ba8 60. a6) 56. Rf6 {[%emt 0:00:29]} Qe4+ {[%emt 0:00:30]} 57. Kg1 {[%emt 0:00:01]} Qe1+ {[%emt 0:00:10]} 58. Kg2 {[%emt 0:00:05]} Qxa5 {[%emt 0:00:05] Threatens to win with ...Qd5+.} 59. f4 {[%emt 0:00:15]} Qd5+ {[%emt 0:00:58] Black mates.} 60. Kg3 {[%emt 0:00:09]} a5 {[%emt 0:00:05]} 61. Kg4 {[%emt 0:01:11]} a4 {[%emt 0:00:13]} 62. Ra6 {[%emt 0:00:19] [#]} Qe6+ $3 {[%emt 0:00:11][%mdl 512] Weighted Error Value: White=0.44/Black=0.08 (flawless) .  Loses game:     	White=1     	---        Mistake:       	White=4     	Black=1      Inaccurate:     	---       	Black=1      OK:         	White=21    	Black=20     Best:        	White=3     	Black=3      Strong:       	---       	Black=1      Brilliant:      	---       	Black=1} 0-1

[Event "WR Chess Masters Cup 2024"]
[Site "London"]
[Date "2024.10.14"]
[Round "1.2"]
[White "Vidit, Santosh Gujrathi"]
[Black "Topalov, Veselin"]
[Result "1-0"]
[ECO "D13"]
[WhiteElo "2726"]
[BlackElo "2727"]
[Annotator "RC"]
[PlyCount "105"]
[EventDate "2024.10.12"]
[EventType "k.o."]
[EventCountry "ENG"]
[SourceTitle "playchess.com"]
[Source "ChessBase"]
[SourceQuality "1"]
[TimeControl "30/3600:20/1800:1800"]

1. d4 {[%emt 0:00:22]} d5 {[%emt 0:00:09]} 2. c4 {[%emt 0:00:14]} c6 {[%emt 0:00:09]} 3. cxd5 {[%emt 0:04:32]} cxd5 {[%emt 0:00:09]} 4. Nf3 {[%emt 0:00:30]} Nc6 {[%emt 0:00:42]} 5. Nc3 {[%emt 0:00:09]} Nf6 {[%emt 0:00:21]} 6. Bf4 {[%emt 0:00:10]} Ne4 {[%emt 0:00:33]} 7. e3 {[%emt 0:02:27]} e6 {[%emt 0:00:59]} 8. Nxe4 {[%emt 0:10:18]} dxe4 {[%emt 0:00:11]} 9. Nd2 {[%emt 0:00:08]} Bb4 {[%emt 0:03:35]} 10. a3 {[%emt 0:02:01]} Bxd2+ {[%emt 0:00:55]} 11. Qxd2 {[%emt 0:00:03]} O-O {[%emt 0:01:08]} 12. Rc1 {[%emt 0:02:32]} Ne7 {[%emt 0:06:14]} 13. Be2 {[%emt 0:09:38]} Nd5 {[%emt 0:01:05]} 14. Bg3 {[%emt 0:00:07]} Bd7 {[%emt 0:00:41]} 15. O-O {[%emt 0:00:48]} Bc6 {[%emt 0:00:59]} 16. Qc2 {[%emt 0:03:43]} Qd7 {[%emt 0:03:13]} 17. Rfe1 {[%emt 0:00:30]} Ne7 {[%emt 0:01:45]} 18. Qc5 {[%emt 0:01:16]} Rfc8 {[%emt 0:01:38]} 19. Qd6 {[%emt 0:01:34]} Qe8 {[%emt 0:00:41]} 20. Qf4 {[%emt 0:03:56]} h6 {[%emt 0:06:50]} 21. h4 {[%emt 0:01:04]} Bd5 {[%emt 0:01:42]} 22. h5 {[%emt 0:00:54]} Rc6 {[%emt 0:07:31]} 23. Rxc6 {[%emt 0:03:49]} Qxc6 {[%emt 0:00:47]} 24. Qd6 {[%emt 0:00:21]} Qe8 {[%emt 0:02:15]} 25. Rc1 {[%emt 0:00:18]} Rd8 {[%emt 0:01:12]} 26. Qf4 {[%emt 0:02:20]} Bc6 {[%emt 0:02:30]} 27. Qg4 {[%emt 0:00:07]} Nf5 {[%emt 0:02:21]} 28. Rc5 {[%emt 0:00:49]} b6 {[%emt 0:03:49]} 29. Rc3 {[%emt 0:00:19]} Bd5 {[%emt 0:02:24]} 30. Rc7 {[%emt 0:00:00]} Rc8 {[%emt 0:00:00]} 31. Bb5 {[%emt 0:07:04]} Qd8 {[%emt 0:05:08]} 32. Rxa7 {[%emt 0:02:58]} Qg5 {[%emt 0:10:50]} 33. Qxg5 {[%emt 0:01:57]} Rc1+ {[%emt 0:00:16]} 34. Kh2 {[%emt 0:00:09]} hxg5 {[%emt 0:00:05]} 35. Be8 {[%emt 0:04:18]} Nh6 {[%emt 0:00:34]} 36. Bd6 {[%emt 0:03:19]} Rf1 {[%emt 0:02:41]} 37. Be7 {[%emt 0:02:02]} Rxf2 {[%emt 0:03:25]} 38. Bxg5 {[%emt 0:01:11]} Rf5 {[%emt 0:02:09]} 39. Bxh6 {[%emt 0:02:26]} Rxh5+ {[%emt 0:00:16]} 40. Kg1 {[%emt 0:00:44]} Rxh6 {[%emt 0:00:06]} 41. Ra6 {[%emt 0:00:49]} e5 {[%emt 0:02:41]} 42. dxe5 {[%emt 0:00:23]} Bc6 {[%emt 0:00:06]} 43. Bxc6 {[%emt 0:00:47]} Rxc6 {[%emt 0:00:04]} 44. Ra4 {[%emt 0:01:16]} Rc1+ {[%emt 0:00:34]} 45. Kh2 {[%emt 0:00:05]} Rc2 {[%emt 0:00:08]} 46. Rb4 {[%emt 0:00:07]} Re2 {[%emt 0:00:09]} 47. Kg3 {[%emt 0:01:44]} g5 {[%emt 0:01:02]} 48. Rxb6 {[%emt 0:00:21]} Rxe3+ {[%emt 0:00:06]} 49. Kf2 {[%emt 0:00:42]} Rd3 {[%emt 0:00:03]} 50. a4 {[%emt 0:00:00]} Rd2+ {[%emt 0:00:00]} 51. Ke3 {[%emt 0:01:44]} Rxg2 {[%emt 0:01:21]} 52. a5 {[%emt 0:00:09]} Rg1 {[%emt 0:00:09]} 53. Kxe4 {[%emt 0:30:46]} 1-0

[Event "WR Chess Masters Cup 2024"]
[Site "London"]
[Date "2024.10.14"]
[Round "1.2"]
[White "Sindarov, Javokhir"]
[Black "Vachier-Lagrave, Maxime"]
[Result "1/2-1/2"]
[ECO "D85"]
[WhiteElo "2668"]
[BlackElo "2735"]
[Annotator "TA"]
[PlyCount "113"]
[EventDate "2024.10.12"]
[EventType "k.o."]
[EventCountry "ENG"]
[SourceTitle "playchess.com"]
[Source "ChessBase"]
[SourceQuality "1"]
[TimeControl "30/3600:20/1800:1800"]

{[%evp 19,113,0,2,-3,24,4,18,17,9,16,18,9,11,8,18,12,24,21,39,36,34,34,40,40,38,39,32,36,37,27,26,20,52,52,52,52,52,10,10,7,7,5,5,0,68,68,68,68,68,68,68,68,64,51,55,29,19,18,29,28,29,29,29,20,19,17,24,18,31,31,24,17,24,0,24,0,25,13,13,13,13,13,13,13,13,13,13,13,13,13,13,0,13,0,13,0]} 1. d4 {[%emt 0:00:02]} Nf6 {[%emt 0:00:05]} 2. c4 {[%emt 0:00:07]} g6 {[%emt 0:00:03]} 3. Nc3 {[%emt 0:00:11]} d5 {[%emt 0:00:03]} 4. cxd5 {[%emt 0:00:09]} Nxd5 {[%emt 0:00:03]} 5. e4 {[%emt 0:00:06]} Nxc3 {[%emt 0:00:03]} 6. bxc3 {[%emt 0:00:03]} Bg7 {[%emt 0:00:04]} 7. Nf3 {[%emt 0:00:05]} c5 {[%emt 0:00:06]} 8. Bb5+ {[%emt 0:00:04]} Nc6 {[%emt 0:00:05]} 9. O-O {[%emt 0:00:05]} O-O {[%emt 0:00:15]} 10. Bxc6 {[%emt 0:00:03]} bxc6 {[%emt 0:00:03]} 11. Qc2 {[%emt 0:00:05]} Qa5 {[%emt 0:02:14] Wards off Ba3} 12. a4 {[%emt 0:00:23]} Rd8 {[%emt 0:56:56]} 13. Ba3 {[%emt 0:07:11][%cal Bc1a3,Ba3e7,Be7c5,Bc5e3][%mdl 32]} cxd4 {[%emt 0:00:00]} 14. cxd4 {[%emt 0:00:03]} Bg4 {[%emt 0:00:00] [#] ...Bxf3 would now be deadly.} 15. Ne5 {[%emt 0:00:05]} (15. Qxc6 $2 {perishes.} Bxf3 (15... Bxd4 $2 16. Nxd4 Rac8 17. Nb3 $18) 16. gxf3 Qg5+ (16... Bxd4 17. Bxe7 Rdc8 18. Qb5 $15) 17. Kh1 Bxd4 $19) 15... Bxe5 {[%emt 0:00:00]} 16. dxe5 {[%emt 0:00:03]} Qxe5 {[%emt 0:00:00]} 17. h3 {[%emt 0:02:13]} Be6 {[%emt 0:00:00]} 18. Bxe7 {[%emt 0:00:52]} Bb3 {[%emt 0:00:00]} 19. Qc5 {[%emt 0:00:04]} Qxc5 {[%emt 0:00:00]} 20. Bxc5 {[%emt 0:00:04]} a5 {[%emt 0:00:00]} 21. Rfc1 {[%emt 0:04:51]} Rd2 {[%emt 0:00:00]} 22. Be3 {[%emt 0:00:18][%csl LRc6,LRd2]} Rc2 {[%emt 0:00:00]} 23. Rcb1 {[%emt 0:00:12]} Be6 {[%emt 0:00:00]} 24. Rb7 {[%emt 0:07:14]} Rc4 {[%emt 0:00:00]} 25. f3 {[%emt 0:00:15]} Kg7 {[%emt 0:00:00]} 26. h4 {[%emt 0:02:20]} h5 {[%emt 0:00:00]} 27. Bf4 {[%emt 0:02:39]} Rb4 {[%emt 0:00:00]} 28. Rc7 {[%emt 0:00:53]} Bb3 {[%emt 0:00:00]} 29. Be5+ {[%emt 0:16:35]} Kg8 {[%emt 0:00:00]} 30. Ra3 {[%emt 0:00:00]} Bxa4 {[%emt 0:00:00]} 31. Bf6 {[%emt 0:04:02]} Bb5 {[%emt 0:00:00] [#]} ({Better is} 31... Rc4 $11) 32. Rxa5 $1 $14 {[%emt 0:00:37] White is more active.} Ra4 {[%emt 0:00:00]} (32... Rb1+ 33. Kh2 Rb8 (33... Rxa5 34. Rc8+ Kh7 35. Rh8#) 34. Kg3 $16) 33. Rxa4 {[%emt 0:00:13]} Bxa4 {[%emt 0:00:00][%mdl 4096] Endgame. KRB-KRB} 34. Kh2 {[%emt 0:00:09]} Bb5 {[%emt 0:00:00]} 35. Kg3 {[%emt 0:00:12]} Re8 {[%emt 0:00:00]} 36. Kf4 {[%emt 0:00:21]} Ba6 {[%emt 0:00:00]} 37. Kg5 {[%emt 0:03:14]} Rc8 $1 {[%emt 0:00:00]} 38. Ra7 {[%emt 0:01:25]} Bc4 {[%emt 0:00:00]} 39. Kh6 {[%emt 0:03:47]} Be6 {[%emt 0:00:00]} 40. Bg7 {[%emt 0:03:38]} c5 {[%emt 0:00:00]} 41. Ra6 {[%emt 0:00:16]} Bc4 {[%emt 0:00:00]} 42. Rd6 {[%emt 0:00:17]} Be6 {[%emt 0:00:00]} 43. Rd2 {[%emt 0:00:42]} Re8 {[%emt 0:03:09]} 44. Bf6 {[%emt 0:01:25]} Kf8 {[%emt 0:03:51]} 45. Kg5 {[%emt 0:04:14]} Kg8 {[%emt 0:04:18]} 46. Kh6 {[%emt 0:00:18]} Kf8 {[%emt 0:00:06]} 47. Kg5 {[%emt 0:00:22]} Kg8 {[%emt 0:00:04]} 48. g4 {[%emt 0:00:58]} hxg4 {[%emt 0:01:04] The position is equal.} 49. fxg4 {[%emt 0:00:03]} Kh7 {[%emt 0:00:07]} 50. Rh2 {[%emt 0:00:00] aiming for h5.} Rg8 $1 {[%emt 0:00:00]} 51. Kf4 {[%emt 0:03:27]} Kh6 $1 {[%emt 0:03:04]} 52. Rh1 {[%emt 0:00:26]} c4 {[%emt 0:01:16]} 53. Rh2 {[%emt 0:00:11]} Bd7 {[%emt 0:00:52]} 54. Rd2 {[%emt 0:00:59]} Be6 {[%emt 0:00:05]} 55. Rh2 {[%emt 0:00:06]} Bd7 {[%emt 0:00:04]} 56. Rd2 {[%emt 0:00:08]} Be6 {[%emt 0:00:04]} 57. Rh2 {[%emt 0:00:05] Weighted Error Value: White=0.05 (flawless) /Black=0.06 (flawless) .  Mistake:       	---       	Black=1      Inaccurate:     	White=2     	Black=2      OK:         	White=17    	Black=23     Best:        	---       	Black=3      Strong:       	---       	Black=3      Brilliant:      	White=1     	---} 1/2-1/2